bitfinex/quotes_BTCUSD_20230103
["timestamp","ask_amount","ask_price","bid_price","bid_amount"]
[1672731329006,2.24720017,16741.0,16740.0,0.02026289]
[1672731332368,2.85132838,16741.0,16740.0,0.02026289]
[1672731332815,2.24720017,16741.0,16740.0,0.02026289]
[1672731333481,2.85133663,16741.0,16740.0,1.38713517]
[1672731333706,2.81685372,16741.0,16740.0,1.38713517]
[1672731337646,2.81685372,16741.0,16740.0,0.70144173]
[1672731338157,2.81685372,16741.0,16740.0,1.38713517]
[1672731341188,2.81685372,16741.0,16740.0,2.00253617]
[1672731341683,2.81685372,16741.0,16740.0,1.38713517]
[1672731341927,2.81685372,16741.0,16740.0,0.70144173]
[1672731343667,2.81685372,16741.0,16740.0,1.38713517]
[1672731344185,2.81685372,16741.0,16740.0,0.70144173]
[1672731344955,2.81685372,16741.0,16740.0,1.38713517]
[1672731347490,2.81685372,16741.0,16740.0,0.70144173]
[1672731351980,2.81685372,16741.0,16740.0,0.70135448]
[1672731352492,2.21271726,16741.0,16740.0,0.70135448]
[1672731352752,2.81724837,16741.0,16740.0,0.70135448]
[1672731353715,2.21271726,16741.0,16740.0,0.70135448]
[1672731354401,2.21271726,16741.0,16740.0,1.38704792]
[1672731354689,2.21271726,16741.0,16740.0,0.70135448]
[1672731355175,2.21271726,16741.0,16740.0,1.38704792]
[1672731355926,2.81732537,16741.0,16740.0,1.38704792]
[1672731356170,2.81732537,16741.0,16740.0,0.70135448]
[1672731356430,2.21271726,16741.0,16740.0,0.70135448]
[1672731358425,2.81733193,16741.0,16740.0,0.70135448]
[1672731358898,2.21271726,16741.0,16740.0,0.70135448]
[1672731359172,2.81733777,16741.0,16740.0,1.38704792]
[1672731360587,2.79938582,16741.0,16740.0,1.38704792]
[1672731367986,2.81733777,16741.0,16740.0,1.38704792]
[1672731368242,2.21271726,16741.0,16740.0,1.38704792]
[1672731368998,2.8173444,16741.0,16740.0,1.38704792]
[1672731372581,2.8173444,16741.0,16740.0,1.38695417]
[1672731394178,2.8173444,16741.0,16740.0,1.3868487]
[1672731395975,2.5173444,16741.0,16740.0,1.3868487]
[1672731397911,2.8173444,16741.0,16740.0,1.3868487]
[1672731401944,2.5173444,16741.0,16740.0,1.3868487]
[1672731402690,2.5173444,16741.0,16740.0,2.0868487]
[1672731406564,1.9200094,16741.0,16740.0,2.0868487]
[1672731406813,2.5173444,16741.0,16740.0,2.0868487]
[1672731407318,2.8173444,16741.0,16740.0,2.0868487]
[1672731408602,2.8173444,16741.0,16740.0,1.3868487]
[1672731409610,2.8173444,16741.0,16740.0,2.0868487]
[1672731410863,2.51722955,16741.0,16740.0,2.0868487]
[1672731412797,2.81722955,16741.0,16740.0,2.0868487]
[1672731413034,2.51722955,16741.0,16740.0,2.0868487]
[1672731415563,2.51722955,16741.0,16740.0,1.3868487]
[1672731416622,2.51722955,16741.0,16740.0,2.0868487]
[1672731419134,2.51722955,16741.0,16740.0,2.7022497]
[1672731419655,2.51722955,16741.0,16740.0,2.0868487]
[1672731422637,2.51722955,16741.0,16740.0,1.3868487]
[1672731423641,2.51722955,16741.0,16740.0,2.0868487]
[1672731425886,2.4992776,16741.0,16740.0,2.0868487]
[1672731426143,1.89465046,16741.0,16740.0,2.0868487]
[1672731426398,2.4992776,16741.0,16740.0,2.0868487]
[1672731426652,1.89465046,16741.0,16740.0,2.0868487]
[1672731426912,2.4992776,16741.0,16740.0,2.0868487]
[1672731427678,1.89465046,16741.0,16740.0,2.0868487]
[1672731428442,2.4992776,16741.0,16740.0,2.0868487]
[1672731432312,2.51722955,16741.0,16740.0,2.0868487]
[1672731432802,2.51722955,16741.0,16740.0,2.086782]
[1672731435256,2.51722955,16741.0,16740.0,1.386782]
[1672731436293,2.51722955,16741.0,16740.0,2.086782]
[1672731441039,2.51722955,16741.0,16740.0,1.40560316]
[1672731442314,2.51722955,16741.0,16740.0,0.70560316]
[1672731443329,1.8934426,16741.0,16740.0,1.92400257]
[1672731443620,1.8934426,16741.0,16740.0,2.27910257]
[1672731443878,2.4907776,16741.0,16740.0,2.27910257]
[1672731444140,1.88615046,16741.0,16740.0,2.27910257]
[1672731444656,2.4907776,16741.0,16740.0,2.27910257]
[1672731444960,2.4907776,16741.0,16740.0,1.92400257]
[1672731447582,2.50872955,16741.0,16740.0,1.92400257]
[1672731449347,2.50872955,16741.0,16740.0,1.22400257]
[1672731450384,2.50872955,16741.0,16740.0,1.92400257]
[1672731452858,2.50866699,16741.0,16740.0,1.92400257]
[1672731456368,2.50866699,16741.0,16740.0,1.22400257]
[1672731457377,2.50866699,16741.0,16740.0,1.92400257]
[1672731457629,2.80866699,16741.0,16740.0,1.92400257]
[1672731464903,2.80866699,16741.0,16740.0,1.22400257]
[1672731465921,2.80866699,16741.0,16740.0,1.92400257]
[1672731468693,2.50866699,16741.0,16740.0,1.92400257]
[1672731474511,2.80866699,16741.0,16740.0,1.92400257]
[1672731477059,2.80866699,16741.0,16740.0,1.92393497]
[1672731479227,2.50866699,16741.0,16740.0,1.92393497]
[1672731480757,2.80866699,16741.0,16740.0,1.92393497]
[1672731482858,2.50866699,16741.0,16740.0,1.92393497]
[1672731484202,2.80866699,16741.0,16740.0,1.92393497]
[1672731487134,2.80866699,16741.0,16740.0,1.22393497]
[1672731487928,2.50866699,16741.0,16740.0,1.22393497]
[1672731488176,2.50866699,16741.0,16740.0,1.92393497]
[1672731494105,2.50866699,16741.0,16740.0,1.22393497]
[1672731495157,2.50866699,16741.0,16740.0,1.92393497]
[1672731496441,2.80866699,16741.0,16740.0,1.92393497]
[1672731496695,2.50866699,16741.0,16740.0,1.92393497]
[1672731498542,2.50866699,16741.0,16740.0,1.92383104]
[1672731498748,2.80866699,16741.0,16740.0,1.92383104]
[1672731499002,2.50866699,16741.0,16740.0,1.92383104]
[1672731499257,2.80866699,16741.0,16740.0,1.92383104]
[1672731499521,2.50866699,16741.0,16740.0,1.92383104]
[1672731500283,2.80866699,16741.0,16740.0,1.92383104]
[1672731500820,2.50866699,16741.0,16740.0,1.92383104]
[1672731501062,2.50866699,16741.0,16740.0,1.22383104]
[1672731502108,2.50866699,16741.0,16740.0,1.92383104]
[1672731506508,2.50856987,16741.0,16740.0,1.92383104]
[1672731508870,2.79072604,16741.0,16740.0,0.01973819]
[1672731509376,2.18599078,16741.0,16740.0,0.01973819]
[1672731510719,2.20394273,16741.0,16740.0,0.01973819]
[1672731512300,2.80851498,16741.0,16740.0,0.01973819]
[1672731513343,2.80850571,16741.0,16740.0,0.01973819]
[1672731513591,1.90394273,16741.0,16740.0,1.39366535]
[1672731513841,2.50850957,16741.0,16740.0,2.00906635]
[1672731514081,2.50850957,16741.0,16740.0,1.39366535]
[1672731515352,2.50850957,16741.0,16740.0,2.09366535]
[1672731515860,1.91117457,16741.0,16740.0,2.09366535]
[1672731516124,2.50850957,16741.0,16740.0,2.09366535]
[1672731516376,1.91117457,16741.0,16740.0,2.09366535]
[1672731517960,1.89322262,16741.0,16740.0,2.70906635]
[1672731518467,1.28865578,16741.0,16740.0,2.70906635]
[1672731518721,1.28865578,16741.0,16740.0,2.09366535]
[1672731520016,1.89322262,16741.0,16740.0,2.09366535]
[1672731521272,1.28865578,16741.0,16740.0,2.09366535]
[1672731522820,1.28865578,16741.0,16740.0,1.39366535]
[1672731523597,1.28865578,16741.0,16740.0,2.09366535]
[1672731527552,1.8260347,16741.0,16740.0,2.09366535]
[1672731529051,1.8260347,16741.0,16740.0,2.09385304]
[1672731529552,1.8260347,16741.0,16740.0,1.39385304]
[1672731530552,1.8260347,16741.0,16740.0,2.09366535]
[1672731530888,1.8260347,16741.0,16740.0,2.093546]
[1672731531391,1.82595195,16741.0,16740.0,2.093546]
[1672731536417,1.28865578,16741.0,16740.0,2.093546]
[1672731536657,1.28865578,16741.0,16740.0,1.393546]
[1672731536881,1.82587086,16741.0,16740.0,1.393546]
[1672731537619,1.82587086,16741.0,16740.0,2.093546]
[1672731538590,1.28865578,16741.0,16740.0,2.093546]
[1672731538836,1.8258558,16741.0,16740.0,2.270646]
[1672731540033,1.8258558,16741.0,16740.0,2.265646]
[1672731540508,1.28865578,16741.0,16740.0,2.265646]
[1672731542010,1.82584583,16741.0,16740.0,2.265646]
[1672731543892,1.82584583,16741.0,16740.0,2.088546]
[1672731548066,1.82584583,16741.0,16740.0,1.388546]
[1672731549335,1.82584583,16741.0,16740.0,2.088546]
[1672731553901,1.28865578,16741.0,16740.0,2.088546]
[1672731554431,1.82618727,16741.0,16740.0,2.088546]
[1672731554703,1.28865578,16741.0,16740.0,2.088546]
[1672731556184,1.28865578,16741.0,16740.0,1.388546]
[1672731557184,1.28865578,16741.0,16740.0,2.088546]
[1672731560144,1.82627985,16741.0,16740.0,2.088546]
[1672731562408,1.28865578,16741.0,16740.0,1.40285256]
[1672731562659,1.89322262,16741.0,16740.0,1.40277307]
[1672731562909,1.89322262,16741.0,16740.0,2.08846651]
[1672731563907,1.28865578,16741.0,16740.0,2.08846651]
[1672731569179,1.28865578,16741.0,16740.0,1.38846651]
[1672731570152,1.28865578,16741.0,16740.0,2.08846651]
[1672731576219,1.28865578,16741.0,16740.0,1.38846651]
[1672731577232,1.28865578,16741.0,16740.0,2.08846651]
[1672731583314,1.28865578,16741.0,16740.0,1.38846651]
[1672731584331,1.28865578,16741.0,16740.0,2.08846651]
[1672731586576,1.28865578,16741.0,16740.0,2.08834932]
[1672731586832,1.20228392,16741.0,16740.0,2.08834932]
[1672731587815,1.29207002,16741.0,16740.0,2.08834932]
[1672731590357,1.29207002,16741.0,16740.0,1.38834932]
[1672731591130,1.29207002,16741.0,16740.0,2.08834932]
[1672731593962,1.82976454,16741.0,16740.0,2.08834932]
[1672731597321,1.82976454,16741.0,16740.0,1.38834932]
[1672731598343,1.82976454,16741.0,16740.0,2.08834932]
[1672731599893,0.09775982,16741.0,16740.0,2.30524742]
[1672731600175,0.09775982,16741.0,16740.0,2.92064842]
[1672731600906,0.54570781,16741.0,16740.0,2.92064842]
[1672731601170,0.54370781,16741.0,16740.0,2.90622626]
[1672731601423,0.54970781,16741.0,16740.0,2.98922626]
[1672731601681,0.54970781,16741.0,16740.0,2.43839444]
[1672731601936,0.54970781,16741.0,16740.0,2.93839444]
[1672731602184,0.90806824,16741.0,16740.0,2.93839444]
[1672731602931,0.54970781,16741.0,16740.0,2.93839444]
[1672731603204,0.90805192,16741.0,16740.0,3.44791095]
[1672731603456,0.90805192,16741.0,16740.0,2.93839444]
[1672731603744,0.90805192,16741.0,16740.0,3.49754114]
[1672731604503,1.176702,16741.0,16740.0,3.53735247]
[1672731605027,1.176702,16741.0,16740.0,3.53754016]
[1672731605323,0.90805192,16741.0,16740.0,3.53754016]
[1672731605646,0.90805192,16741.0,16740.0,2.93858213]
[1672731605818,0.72875675,16741.0,16740.0,2.93858213]
[1672731606070,0.5494554,16741.0,16740.0,2.92055213]
[1672731606322,0.5494554,16741.0,16740.0,4.13332413]
[1672731606840,0.5494554,16741.0,16740.0,3.51792313]
[1672731609840,0.5494554,16741.0,16740.0,4.13332413]
[1672731610090,0.5494554,16741.0,16740.0,3.51792313]
[1672731610091,0.28080258,16741.0,16740.0,3.51792313]
[1672731610590,0.28080258,16741.0,16740.0,4.80925055]
[1672731610835,0.28080258,16741.0,16740.0,3.51792313]
[1672731612111,0.28080258,16741.0,16740.0,4.13332413]
[1672731612611,0.28080258,16741.0,16740.0,3.51792313]
[1672731614335,0.28080258,16741.0,16740.0,3.33727409]
[1672731614581,0.10175982,16741.0,16740.0,2.81792313]
[1672731614823,0.10175982,16741.0,16740.0,3.51792313]
[1672731615070,0.10175982,16741.0,16740.0,4.11529413]
[1672731617082,0.10175982,16741.0,16740.0,4.74454876]
[1672731617330,0.10175982,16741.0,16740.0,4.11529413]
[1672731617577,0.10175982,16741.0,16740.0,4.03787213]
[1672731617828,0.10175982,16741.0,16740.0,3.51792313]
[1672731618888,0.10175982,16741.0,16740.0,3.69632313]
[1672731619402,0.10175982,16741.0,16740.0,4.29369413]
[1672731619645,0.10175982,16741.0,16740.0,4.90909513]
[1672731619902,0.10175982,16741.0,16740.0,4.29369413]
[1672731620151,0.10175982,16741.0,16740.0,4.90909513]
[1672731624726,0.10175982,16741.0,16740.0,5.53709513]
[1672731633173,0.10175982,16741.0,16740.0,4.83709513]
[1672731633919,0.10175982,16741.0,16740.0,4.66009513]
[1672731634409,0.10175982,16741.0,16740.0,5.38113467]
[1672731634661,0.10175982,16741.0,16740.0,5.99653567]
[1672731634904,0.10175982,16741.0,16740.0,5.36009513]
[1672731635413,0.10175982,16741.0,16740.0,4.74469413]
[1672731635657,0.10175982,16741.0,16740.0,5.36009513]
[1672731636880,0.10175982,16741.0,16740.0,4.74469413]
[1672731637372,0.10175982,16741.0,16740.0,5.36009513]
[1672731637619,0.10175982,16741.0,16740.0,4.74469413]
[1672731638336,0.10175982,16741.0,16740.0,5.36009513]
[1672731649467,0.10175982,16741.0,16740.0,5.53931242]
[1672731649712,0.10175982,16741.0,16740.0,4.22391142]
[1672731650760,0.10175982,16741.0,16740.0,4.92391142]
[1672731651300,0.10175982,16741.0,16740.0,5.19287122]
[1672731651585,0.10175982,16741.0,16740.0,4.92391142]
[1672731652090,0.10175982,16741.0,16740.0,5.53931242]
[1672731657572,0.10175982,16741.0,16740.0,5.80827222]
[1672731658304,0.10175982,16741.0,16740.0,6.69176079]
[1672731664139,0.10175982,16741.0,16740.0,6.51446079]
[1672731664358,0.10175982,16741.0,16740.0,5.89905979]
[1672731664610,0.10175982,16741.0,16740.0,5.19905979]
[1672731665607,0.10175982,16741.0,16740.0,5.89905979]
[1672731667656,0.10175982,16741.0,16740.0,5.89905455]
[1672731670456,0.10175982,16741.0,16740.0,6.51445555]
[1672731671486,0.10175982,16741.0,16740.0,5.89905455]
[1672731671743,0.10175982,16741.0,16740.0,5.19905455]
[1672731672733,0.10175982,16741.0,16740.0,5.89905455]
[1672731674971,0.10175982,16741.0,16740.0,6.51445555]
[1672731675410,0.10175982,16741.0,16740.0,5.89905455]
[1672731676949,0.44769558,16743.0,16741.0,0.5]
[1672731677212,0.44769558,16743.0,16742.0,1.46665168]
[1672731677477,0.44769558,16743.0,16742.0,2.67935268]
[1672731677691,0.44769558,16743.0,16742.0,2.06395168]
[1672731677692,0.19098878,16743.0,16742.0,2.06395168]
[1672731678183,0.19001577,16743.0,16742.0,2.76395168]
[1672731678453,0.18501577,16743.0,16742.0,2.76395168]
[1672731678667,0.19001577,16743.0,16742.0,2.85295168]
[1672731679712,0.19001577,16743.0,16742.0,3.54998722]
[1672731680416,0.01097301,16743.0,16742.0,4.16538822]
[1672731680647,0.19001577,16743.0,16742.0,4.16538822]
[1672731681382,0.01097301,16743.0,16742.0,4.16538822]
[1672731682106,0.01097301,16743.0,16742.0,3.54998722]
[1672731683071,0.01097301,16743.0,16742.0,2.85295168]
[1672731683305,0.01097301,16743.0,16742.0,3.45298704]
[1672731683553,0.01097301,16743.0,16742.0,3.56674497]
[1672731683811,0.01097301,16743.0,16742.0,3.46835268]
[1672731684047,0.01097301,16743.0,16742.0,2.85295168]
[1672731684261,0.00597301,16743.0,16742.0,2.76395168]
[1672731684736,0.00597301,16743.0,16742.0,2.90395168]
[1672731684984,0.00597301,16743.0,16742.0,3.9154607]
[1672731685214,0.00597301,16743.0,16742.0,3.51835268]
[1672731686165,0.00597301,16743.0,16742.0,4.10266094]
[1672731687322,0.00597301,16743.0,16742.0,3.51835268]
[1672731688029,0.00597301,16743.0,16742.0,4.19477051]
[1672731688262,0.00597301,16743.0,16742.0,3.51835268]
[1672731688788,0.00597301,16743.0,16742.0,4.17915974]
[1672731690804,0.00597301,16743.0,16742.0,2.81835268]
[1672731691057,0.00597301,16743.0,16742.0,2.20295168]
[1672731691267,0.00597301,16743.0,16742.0,2.4309]
[1672731691507,0.00597301,16743.0,16742.0,2.96742823]
[1672731691751,0.00597301,16743.0,16742.0,3.1309]
[1672731692264,0.00597301,16743.0,16742.0,3.81406914]
[1672731692519,0.00597301,16743.0,16742.0,4.42947014]
[1672731697637,0.00597301,16743.0,16742.0,3.72947014]
[1672731697889,0.00597301,16743.0,16742.0,3.11406914]
[1672731698593,0.00597301,16743.0,16742.0,3.81406914]
[1672731698808,0.00597301,16743.0,16742.0,4.42947014]
[1672731699340,0.00597301,16743.0,16742.0,5.0298421]
[1672731699590,0.00597301,16743.0,16742.0,4.42947014]
[1672731699836,0.00597301,16743.0,16742.0,4.6088766]
[1672731700336,0.00587671,16743.0,16742.0,4.6088766]
[1672731700868,0.00587671,16743.0,16742.0,3.9934756]
[1672731701362,0.00587671,16743.0,16742.0,4.61389698]
[1672731701617,0.00587671,16743.0,16742.0,3.81406914]
[1672731701861,0.00587671,16743.0,16742.0,4.39440648]
[1672731702118,0.00587671,16743.0,16742.0,2.63757014]
[1672731702367,0.00587671,16743.0,16742.0,3.81406914]
[1672731702626,0.00587671,16743.0,16742.0,4.42947014]
[1672731702900,0.00587671,16743.0,16742.0,4.46446504]
[1672731703142,0.00587671,16743.0,16742.0,3.81406914]
[1672731703404,0.00587671,16743.0,16742.0,4.41064597]
[1672731703674,0.00587671,16743.0,16742.0,4.59005243]
[1672731704468,0.00587671,16743.0,16742.0,5.20545343]
[1672731704709,0.00587671,16743.0,16742.0,4.32604697]
[1672731705750,0.09146201,16743.0,16742.0,5.20545343]
[1672731705962,0.09146201,16743.0,16742.0,4.6088766]
[1672731706763,0.09146201,16743.0,16742.0,5.5942766]
[1672731707599,0.09146201,16743.0,16742.0,5.8632364]
[1672731707824,1e-08,16743.0,16742.0,7.94130254]
[1672731708074,1e-08,16743.0,16742.0,7.9344889]
[1672731708327,0.06168519,16751.0,16743.0,1.128]
[1672731708581,0.597068,16749.0,16745.0,0.5]
[1672731708835,0.597068,16749.0,16746.0,0.92784692]
[1672731709096,0.597068,16749.0,16747.0,0.68778668]
[1672731709348,0.597068,16749.0,16747.0,0.9278467]
[1672731709595,0.00597122,16748.0,16747.0,1.38778668]
[1672731709840,0.00597122,16748.0,16747.0,0.7]
[1672731710091,0.00597122,16748.0,16747.0,1.38839113]
[1672731710584,0.00597122,16748.0,16747.0,1.41339113]
[1672731710832,0.00597122,16748.0,16747.0,1.38839113]
[1672731711072,0.00597122,16748.0,16747.0,1.41339113]
[1672731711562,0.00597122,16748.0,16747.0,1.41357875]
[1672731711844,0.00597122,16748.0,16747.0,2.05119895]
[1672731712336,0.00597122,16748.0,16747.0,2.02619895]
[1672731712587,0.00597122,16748.0,16747.0,2.16819895]
[1672731713590,0.00597122,16748.0,16747.0,2.76531995]
[1672731714840,0.00597122,16748.0,16747.0,2.06531995]
[1672731715591,0.00597122,16748.0,16747.0,2.76531995]
[1672731716322,0.36395468,16748.0,16747.0,2.76531995]
[1672731717341,0.63244276,16748.0,16747.0,2.76531995]
[1672731719199,0.63244276,16748.0,16747.0,2.07692882]
[1672731721476,0.63244276,16748.0,16747.0,1.37692882]
[1672731722640,0.63244276,16748.0,16747.0,2.07692882]
[1672731724996,0.81138677,16748.0,16747.0,2.07692882]
[1672731725250,0.45339743,16748.0,16747.0,2.07692882]
[1672731725501,0.81120089,16748.0,16747.0,2.07692882]
[1672731725991,0.45321743,16748.0,16747.0,2.07692882]
[1672731726266,0.45321743,16748.0,16747.0,2.76610506]
[1672731731105,0.45321743,16748.0,16747.0,2.07692882]
[1672731736459,0.45321743,16748.0,16747.0,1.97404982]
[1672731737518,0.45321743,16748.0,16747.0,2.67404982]
[1672731738285,0.81120089,16748.0,16747.0,2.67404982]
[1672731739028,0.63226276,16748.0,16747.0,2.67404982]
[1672731742625,1.07974382,16748.0,16747.0,2.07692882]
[1672731742875,0.81143574,16748.0,16747.0,2.07692882]
[1672731743894,0.81143574,16748.0,16747.0,2.0767412]
[1672731744120,0.45345228,16748.0,16747.0,2.0767412]
[1672731745154,0.81152669,16748.0,16747.0,2.0767412]
[1672731745404,0.45345228,16748.0,16747.0,2.0767412]
[1672731745656,0.45345228,16748.0,16747.0,2.07667009]
[1672731747378,0.45345228,16748.0,16747.0,2.07685771]
[1672731748827,0.45389191,16748.0,16747.0,2.07685771]
[1672731749053,0.00597122,16748.0,16747.0,2.07685771]
[1672731750356,0.00597122,16748.0,16747.0,1.37685771]
[1672731750629,0.00597122,16748.0,16747.0,0.77973671]
[1672731751137,0.00597122,16748.0,16747.0,1.47954909]
[1672731752846,0.54295335,16748.0,16747.0,1.47954909]
[1672731753354,1.73712535,16748.0,16747.0,0.842]
[1672731754892,1.8403978,16748.0,16747.0,0.842]
[1672731758985,2.1962978,16748.0,16747.0,0.842]
[1672731760312,2.1912978,16748.0,16747.0,0.842]
[1672731760560,2.1912978,16748.0,16747.0,1.45994188]
[1672731761078,2.1912978,16748.0,16747.0,0.75994188]
[1672731762107,2.7883838,16748.0,16747.0,1.45994188]
[1672731763385,2.1912978,16748.0,16747.0,1.45994188]
[1672731768124,2.1912978,16748.0,16747.0,0.75994188]
[1672731769064,2.1912978,16748.0,16747.0,1.45994188]
[1672731769363,2.7883838,16748.0,16747.0,1.45994188]
[1672731769614,2.80633575,16748.0,16747.0,1.45994188]
[1672731771303,2.45043575,16748.0,16747.0,1.45994188]
[1672731775813,2.4324838,16748.0,16747.0,1.45994188]
[1672731781137,2.4324838,16748.0,16747.0,1.45982661]
[1672731784904,2.4324838,16748.0,16747.0,0.75982661]
[1672731785907,2.4324838,16748.0,16747.0,1.45982661]
[1672731787734,1.8353978,16748.0,16747.0,1.45982661]
[1672731791991,1.8353978,16748.0,16747.0,0.75982661]
[1672731792990,1.8353978,16748.0,16747.0,1.45982661]
[1672731798996,1.8353978,16748.0,16747.0,0.75982661]
[1672731799963,1.8353978,16748.0,16747.0,1.45982661]
[1672731802466,1.30341567,16748.0,16747.0,1.45982661]
[1672731804863,1.30341567,16748.0,16747.0,1.45973988]
[1672731805645,0.64686915,16748.0,16747.0,1.45973988]
[1672731805899,0.10924367,16748.0,16747.0,1.63843988]
[1672731809876,0.10924367,16748.0,16747.0,1.6386275]
[1672731810131,0.10924367,16748.0,16747.0,1.6336275]
[1672731810132,0.55714368,16748.0,16747.0,1.6336275]
[1672731810648,0.10924367,16748.0,16747.0,1.6336275]
[1672731812170,0.55711796,16748.0,16747.0,1.6336275]
[1672731812925,0.10924367,16748.0,16747.0,1.6336275]
[1672731813192,0.10924367,16748.0,16747.0,0.9336275]
[1672731814435,0.55713696,16748.0,16747.0,1.6336275]
[1672731815178,0.10924367,16748.0,16747.0,1.6336275]
[1672731815685,0.55712905,16748.0,16747.0,1.6336275]
[1672731815936,0.10924367,16748.0,16747.0,1.6336275]
[1672731816427,0.55712751,16748.0,16747.0,1.6336275]
[1672731816918,0.10924367,16748.0,16747.0,1.6336275]
[1672731820256,0.10924367,16748.0,16747.0,0.9336275]
[1672731821315,0.10924367,16748.0,16747.0,1.6336275]
[1672731822096,0.55714941,16748.0,16747.0,1.6336275]
[1672731822365,0.10924367,16748.0,16747.0,1.6336275]
[1672731823260,0.55714823,16748.0,16747.0,1.6336275]
[1672731824028,0.55714823,16748.0,16747.0,1.6331275]
[1672731824287,0.55714819,16748.0,16747.0,1.6331275]
[1672731824752,0.55714703,16748.0,16747.0,1.6331275]
[1672731825001,0.10924367,16748.0,16747.0,1.6331275]
[1672731826029,0.55715123,16748.0,16747.0,1.6331275]
[1672731827507,0.55714961,16748.0,16747.0,1.6331275]
[1672731828470,0.10924367,16748.0,16747.0,1.6331275]
[1672731828726,0.10924367,16748.0,16747.0,1.4544275]
[1672731829164,0.70632967,16748.0,16747.0,1.4544275]
[1672731829416,0.70632967,16748.0,16747.0,1.45423988]
[1672731832959,0.70632967,16748.0,16747.0,1.4544275]
[1672731833229,0.70632967,16748.0,16747.0,0.7544275]
[1672731833740,1.24395515,16748.0,16747.0,0.7544275]
[1672731834017,0.70632967,16748.0,16747.0,1.4544275]
[1672731834273,1.24395515,16748.0,16747.0,1.4544275]
[1672731838231,1.84104115,16748.0,16747.0,1.4544275]
[1672731840009,1.84104115,16748.0,16747.0,0.7544275]
[1672731840490,1.84104115,16748.0,16747.0,0.75423988]
[1672731840949,1.84104115,16748.0,16747.0,1.45423988]
[1672731844260,1.84104115,16748.0,16747.0,1.4544275]
[1672731845020,1.84104115,16748.0,16747.0,1.4543077]
[1672731847070,1.84104115,16748.0,16747.0,0.7543077]
[1672731848075,1.84104115,16748.0,16747.0,1.4543077]
[1672731853954,1.84104115,16748.0,16747.0,0.7543077]
[1672731854740,1.84104115,16748.0,16747.0,0.75412008]
[1672731854988,1.84104115,16748.0,16747.0,1.45412008]
[1672731858991,1.84096003,16748.0,16747.0,1.45412008]
[1672731861122,1.84096003,16748.0,16747.0,0.75412008]
[1672731861372,1.84096003,16748.0,16747.0,1.45412008]
[1672731862400,2.45599798,16748.0,16747.0,0.8361782]
[1672731862653,2.75599798,16748.0,16747.0,0.8361782]
[1672731862913,2.82249518,16748.0,16747.0,0.8361782]
[1672731863155,1.9183725,16748.0,16747.0,0.8361782]
[1672731867184,1.9183725,16748.0,16747.0,1.34716535]
[1672731867685,2.45602691,16748.0,16747.0,1.34716535]
[1672731868186,1.9183725,16748.0,16747.0,1.34716535]
[1672731872468,1.3212865,16748.0,16747.0,1.34716535]
[1672731872716,1.85906691,16748.0,16747.0,1.34716535]
[1672731873210,1.3212865,16748.0,16747.0,1.34716535]
[1672731873456,1.85906098,16748.0,16747.0,0.64716535]
[1672731873959,1.3212865,16748.0,16747.0,0.64716535]
[1672731874471,1.3212865,16748.0,16747.0,1.34716535]
[1672731880560,1.9183725,16748.0,16747.0,0.64716535]
[1672731880813,1.9183725,16748.0,16747.0,0.64705664]
[1672731881522,2.52249518,16748.0,16747.0,1.34705664]
[1672731883056,1.9183725,16748.0,16747.0,1.34705664]
[1672731885368,2.52249518,16748.0,16747.0,1.34705664]
[1672731886410,1.9183725,16748.0,16747.0,1.34705664]
[1672731887510,1.9183725,16748.0,16747.0,0.64705664]
[1672731888632,1.9183725,16748.0,16747.0,1.34705664]
[1672731889098,2.52249518,16748.0,16747.0,1.34705664]
[1672731889595,1.9183725,16748.0,16747.0,1.34705664]
[1672731893475,1.3212865,16748.0,16747.0,1.34705664]
[1672731894279,1.3212865,16748.0,16747.0,1.34697557]
[1672731894536,1.3212865,16748.0,16747.0,0.64697557]
[1672731895589,1.3212865,16748.0,16747.0,1.34697557]
[1672731900146,1.30333455,16748.0,16747.0,1.34697557]
[1672731900921,1.84105523,16748.0,16747.0,1.34697557]
[1672731901685,1.84105523,16748.0,16747.0,0.64697557]
[1672731901937,1.84105523,16748.0,16747.0,1.34697557]
[1672731905383,1.24396923,16748.0,16747.0,1.34697557]
[1672731905640,0.64688323,16748.0,16747.0,1.34697557]
[1672731905919,0.10916255,16748.0,16747.0,1.25464844]
[1672731906179,0.91586891,16748.0,16747.0,3.40082315]
[1672731906479,0.91586891,16748.0,16747.0,2.78542215]
[1672731907238,0.91586891,16748.0,16747.0,3.40082315]
[1672731907482,0.55703116,16748.0,16747.0,2.20883042]
[1672731908047,0.55703116,16748.0,16747.0,2.77681596]
[1672731908301,0.55703116,16748.0,16747.0,2.20883042]
[1672731908554,0.28830999,16748.0,16747.0,2.85473694]
[1672731908815,0.55703116,16748.0,16747.0,2.85473694]
[1672731909068,0.28830999,16748.0,16747.0,3.45185794]
[1672731909870,0.28830999,16748.0,16747.0,4.06725894]
[1672731910126,0.28830999,16748.0,16747.0,3.42135242]
[1672731910417,0.28830999,16748.0,16747.0,4.00414109]
[1672731911778,0.10916255,16748.0,16747.0,3.38874009]
[1672731912757,0.10916255,16748.0,16747.0,2.79161909]
[1672731913033,0.28830999,16748.0,16747.0,2.79161909]
[1672731913558,0.10916255,16748.0,16747.0,2.79161909]
[1672731913805,0.10916255,16748.0,16747.0,2.20883042]
[1672731914061,0.10916255,16748.0,16747.0,2.85117708]
[1672731914364,0.10916255,16748.0,16747.0,2.20883042]
[1672731914628,0.10916255,16748.0,16747.0,2.7516455]
[1672731918860,0.10916255,16748.0,16747.0,3.3670465]
[1672731919393,0.10916255,16748.0,16747.0,2.7516455]
[1672731919645,0.10916255,16748.0,16747.0,3.3670465]
[1672731919902,0.10916255,16748.0,16747.0,2.7516455]
[1672731920155,0.10916255,16748.0,16747.0,2.0516455]
[1672731921495,0.10916255,16748.0,16747.0,2.7516455]
[1672731927475,0.10916255,16748.0,16747.0,2.6670465]
[1672731927961,0.10916255,16748.0,16747.0,2.7516455]
[1672731930520,0.10916255,16748.0,16747.0,2.20883042]
[1672731931320,0.10916255,16748.0,16747.0,2.90705636]
[1672731931534,0.10916255,16748.0,16747.0,2.82423142]
[1672731931798,0.10916255,16748.0,16747.0,3.37114572]
[1672731932547,0.10916255,16748.0,16747.0,3.96826672]
[1672731933294,0.10916255,16748.0,16747.0,3.37114572]
[1672731934671,0.10916255,16748.0,16747.0,2.82423142]
[1672731934923,0.10916255,16748.0,16747.0,3.3495228]
[1672731938556,0.10916255,16748.0,16747.0,1.50883042]
[1672731938809,0.10916255,16748.0,16747.0,2.70140159]
[1672731939097,0.10916255,16748.0,16747.0,3.31680259]
[1672731939347,0.10916255,16748.0,16747.0,2.70140159]
[1672731939603,0.10916255,16748.0,16747.0,4.01680259]
[1672731940345,0.10916255,16748.0,16747.0,3.42135242]
[1672731940600,0.10916255,16748.0,16747.0,3.39265841]
[1672731941852,0.10916255,16748.0,16747.0,2.79553741]
[1672731943100,0.10916255,16748.0,16747.0,3.39265841]
[1672731943604,0.10916255,16748.0,16747.0,4.00805941]
[1672731943847,0.10916255,16748.0,16747.0,3.39265841]
[1672731944096,0.28830999,16748.0,16747.0,3.39265841]
[1672731945358,0.55703116,16748.0,16747.0,3.39265841]
[1672731948219,0.55703116,16748.0,16747.0,4.08183465]